bitfinex-derivatives/quotes_ETHF0:USTF0_20250620
["timestamp","ask_amount","ask_price","bid_price","bid_amount"]
[1750441045081,3.2078,2379.4,2377.4,3.2078]
[1750441045282,3.2078,2377.9,2376.8,3.2078]
[1750441045476,3.2078,2377.6,2376.8,3.2078]
[1750441045676,3.2078,2378.3,2376.8,3.2078]
[1750441045878,3.2078,2377.9,2376.8,3.2078]
[1750441046077,3.2078,2377.5,2375.7,3.2078]
[1750441046277,3.2078,2377.8,2377.1,11.38077783]
[1750441046587,2.357,2379.9,2375.2,110.251]
[1750441046588,3.2078,2378.5,2377.2,5.698]
[1750441046885,2.3305,2379.1,2377.5,3.2078]
[1750441047182,3.2078,2378.5,2377.7,3.2078]
[1750441047389,3.2078,2378.8,2377.8,2.4902]
[1750441047585,5.5383,2379.1,2377.8,2.4902]
[1750441047888,3.2078,2379.9,2379.0,11.38077783]
[1750441048183,3.2078,2379.9,2376.2,57.934]
[1750441048184,3.2078,2379.8,2379.1,2.4902]
[1750441048390,3.2078,2379.6,2379.1,2.4902]
[1750441048686,52.392,2381.0,2377.9,2.91682435]
[1750441048687,3.2078,2379.3,2378.1,3.2078]
[1750441048885,3.2078,2380.0,2378.3,11.38077783]
[1750441049191,3.2078,2379.9,2378.9,11.38077783]
[1750441049391,3.2078,2379.6,2378.1,3.2078]
[1750441049586,52.405,2380.4,2377.9,2.565]
[1750441049587,3.2078,2380.0,2379.1,11.38077783]
[1750441049793,6.81527438,2382.5,2379.1,11.38077783]
[1750441049794,3.2078,2380.9,2379.8,14.58857783]
[1750441050089,3.2078,2380.8,2379.9,2.3837]
[1750441050284,3.2078,2380.8,2378.3,11.38077783]
[1750441050285,14.58857783,2380.7,2379.3,3.2078]
[1750441050491,3.2078,2379.4,2377.9,3.2078]
[1750441050791,2.09929,2381.6,2375.5,52.405]
[1750441050792,3.2078,2378.8,2377.7,3.2078]
[1750441050987,2.4301,2378.7,2377.7,3.2078]
[1750441051191,3.2078,2378.5,2377.7,3.2078]
[1750441051390,3.2078,2378.8,2377.9,3.2078]
[1750441051590,52.405,2379.5,2378.2,3.2078]
[1750441051591,3.2078,2378.6,2378.2,3.2078]
[1750441051991,3.2078,2378.6,2377.7,3.2078]
[1750441052191,3.2078,2378.3,2377.7,3.2078]
[1750441052488,3.2078,2378.7,2378.1,3.2078]
[1750441052688,3.2078,2378.7,2378.2,2.4217]
[1750441052892,3.2078,2378.7,2378.0,3.2078]
[1750441053088,3.2078,2378.1,2377.4,3.2078]
[1750441053293,3.2078,2377.6,2377.0,3.2078]
[1750441053487,2.5746,2378.0,2377.0,3.29193967]
[1750441053687,3.2078,2377.7,2377.0,0.08413967]
[1750441053888,3.2078,2377.1,2376.3,3.2078]
[1750441054088,11.38077783,2377.3,2374.1,0.42793246]
[1750441054089,3.2078,2376.5,2375.9,3.2078]
[1750441054398,3.2078,2376.0,2375.3,5.75781467]
[1750441054596,14.58857783,2375.4,2375.3,5.75781467]
[1750441054787,14.58857783,2375.4,2373.0,2.5707]
[1750441054992,3.2078,2374.3,2374.1,5.75781467]
[1750441055196,3.2078,2374.3,2373.8,3.2078]
[1750441055388,2.4937,2375.3,2374.0,5.75781467]
[1750441055389,3.2078,2374.2,2374.0,5.75781467]
[1750441055590,3.2078,2374.2,2371.7,0.41717109]
[1750441055591,11.38077783,2374.1,2372.6,3.2078]
[1750441055898,3.2078,2372.0,2370.6,0.34847692]
[1750441056095,3.2078,2371.2,2370.6,0.34847692]
[1750441056288,3.2078,2370.9,2370.6,0.34847692]
[1750441056491,2.4937,2371.1,2370.7,3.23707876]
[1750441056687,2.4937,2371.1,2370.7,0.02927876]
[1750441056887,11.38077783,2370.9,2370.7,0.02927876]
[1750441057089,7.4937,2371.1,2370.8,3.2078]
[1750441057297,7.4937,2371.1,2371.0,1.02843442]
[1750441057298,2.4937,2371.1,2371.0,1.02843442]
[1750441057490,3.2078,2371.4,2369.6,3.2078]
[1750441057796,2.467,2371.0,2369.9,3.2078]
[1750441058093,2.467,2371.0,2367.5,52.456]
[1750441058094,11.38077783,2370.4,2369.6,3.2078]
[1750441058290,2.467,2370.3,2369.0,3.2078]
[1750441058491,14.58857783,2369.1,2368.1,3.2078]
[1750441058697,14.58857783,2369.1,2366.6,0.00422547]
[1750441058698,2.467,2369.0,2367.4,3.2078]
[1750441058992,11.38077783,2367.6,2367.4,3.2078]
[1750441059198,13.84777783,2367.5,2366.6,0.00422547]
[1750441059496,0.84365,2370.4,2368.1,12.67613442]
[1750441059801,3.2078,2369.4,2367.4,3.2078]
[1750441059988,3.2078,2368.4,2367.8,3.2078]
[1750441060189,61.71241913,2370.1,2368.1,3.2078]
[1750441060190,3.2078,2369.7,2368.1,3.2078]
[1750441060397,3.2078,2370.4,2369.0,14.58857783]
[1750441060698,2.4281,2370.8,2370.2,3.2078]
[1750441060894,11.38077783,2372.2,2370.7,3.2078]
[1750441061093,52.558,2373.1,2370.7,3.2078]
[1750441061094,3.2078,2371.7,2370.7,3.2078]
[1750441061289,3.2078,2371.3,2370.1,15.03393442]
[1750441061490,3.2078,2370.6,2370.1,16.8180526]
[1750441061691,2.4281,2371.2,2370.5,3.2078]
[1750441061890,3.2078,2370.8,2370.1,4.99191818]
[1750441062095,3.2078,2371.1,2370.1,4.99191818]
[1750441062298,3.2078,2371.0,2369.8,3.2078]
[1750441062490,3.2078,2371.0,2368.1,11.38077783]
[1750441062691,0.84338,2371.2,2370.1,14.58857783]
[1750441062897,3.2078,2371.2,2370.4,3.2078]
[1750441063093,3.2078,2371.5,2371.1,3.2078]
[1750441063296,3.2078,2371.7,2370.7,3.2078]
[1750441063492,3.2078,2371.7,2370.8,11.38077783]
[1750441063697,0.34288644,2373.7,2372.2,3.2078]
[1750441063997,3.2078,2375.4,2373.6,14.58857783]
[1750441064304,3.2078,2375.4,2373.2,11.38077783]
[1750441064305,4.04956,2375.8,2374.5,3.2078]
[1750441064498,3.2078,2374.9,2372.3,2.5125]
[1750441064700,3.2078,2375.3,2374.1,3.2078]
[1750441064902,3.2078,2375.4,2374.7,3.2078]
[1750441065092,3.2078,2375.5,2374.4,3.2078]
[1750441065293,3.2078,2374.8,2374.1,3.2078]
[1750441065493,3.2078,2375.6,2374.7,3.2078]
[1750441065700,0.0841928,2375.5,2374.6,3.2078]
[1750441065993,3.2078,2374.7,2373.1,3.2078]
[1750441066301,0.08422471,2374.6,2374.0,3.2078]
[1750441066601,0.08422471,2374.6,2374.3,3.2078]
[1750441066797,0.08422471,2374.6,2374.3,8.2078]
[1750441066997,3.29202471,2374.6,2373.5,3.2078]
[1750441067192,0.76899726,2374.1,2373.4,3.2078]
[1750441067392,0.08424599,2374.0,2373.7,11.38077783]
[1750441067598,3.2078,2375.0,2374.0,3.2078]
[1750441068096,4.04981,2375.0,2374.8,10.97289117]
[1750441068302,4.04981,2375.0,2373.3,63.95777783]
[1750441068303,0.84215,2374.7,2374.6,10.97289117]
[1750441068597,0.84223,2374.4,2374.3,10.97289117]
[1750441068796,0.84244,2373.8,2373.5,3.2078]
[1750441068998,11.38077783,2373.7,2373.0,3.2078]
[1750441069197,2.10532,2374.7,2368.9,52.577]
[1750441069198,14.58857783,2373.1,2368.9,52.577]
[1750441069398,3.2078,2371.2,2371.1,10.97289117]
[1750441069606,3.2078,2371.5,2369.7,3.2078]
[1750441069806,3.2078,2371.1,2370.3,3.2078]
[1750441069994,2.471,2372.0,2369.0,8.3787]
[1750441069995,11.38077783,2370.4,2369.0,8.3787]
[1750441070201,3.2078,2369.7,2369.0,3.2078]
[1750441070395,3.2078,2370.1,2369.8,5.80749473]
[1750441070595,3.2078,2371.2,2370.9,5.80749473]
[1750441070801,3.2078,2372.0,2371.9,5.80749473]
[1750441071004,4.05088,2372.0,2371.9,5.80749473]
[1750441071195,4.05088,2372.0,2369.9,2.571]
[1750441071196,0.84324,2371.6,2370.4,3.2078]
[1750441071399,3.2078,2370.9,2370.3,14.58857783]
[1750441071597,3.2078,2371.1,2370.8,1.54960473]
[1750441071799,3.2078,2370.9,2369.4,3.2078]
[1750441072002,55.7908,2370.8,2369.6,3.2078]
[1750441072202,0.84379,2370.0,2369.9,0.69323473]
[1750441072398,14.58857783,2370.5,2369.9,0.69323473]
[1750441072604,3.2078,2370.1,2368.9,3.2078]
[1750441072805,3.2078,2369.5,2368.9,3.2078]
[1750441073006,3.2078,2370.2,2370.1,0.69323473]
[1750441073207,16.38077783,2370.2,2368.9,3.2078]
[1750441073402,3.2078,2369.9,2369.2,3.2078]
[1750441073802,3.2078,2370.9,2369.7,3.2078]
[1750441074002,3.2078,2370.9,2369.9,3.2078]
[1750441074302,3.2078,2370.6,2370.2,3.2078]
[1750441074505,3.2078,2370.9,2370.2,3.2078]
[1750441074698,0.00344966,2415.7,2370.2,3.2078]
[1750441074699,3.2078,2371.3,2370.5,11.38077783]
[1750441074899,2.5786,2372.8,2371.2,3.2078]
[1750441075116,0.08429215,2372.7,2371.8,3.2078]
[1750441075407,16.06535783,2374.0,2372.5,3.2078]
[1750441075613,3.2078,2373.7,2372.8,3.2078]
[1750441075808,3.2078,2374.0,2373.4,3.2078]
[1750441076005,3.2078,2373.7,2372.9,3.2078]
[1750441076211,0.84243,2373.9,2373.2,3.2078]
[1750441076411,0.08425309,2373.8,2373.2,3.2078]
[1750441076614,0.08425309,2373.8,2373.6,3.2078]
[1750441076811,3.2078,2374.4,2373.6,3.2078]
[1750441077012,0.08423535,2374.3,2373.9,3.2078]
[1750441077210,3.2078,2374.2,2373.9,3.2078]
[1750441077509,0.08424244,2374.1,2373.6,3.2078]
[1750441077715,0.08424244,2374.1,2374.0,0.03036138]
[1750441077907,0.92657244,2374.1,2374.0,0.03036138]
[1750441078216,0.08424244,2374.1,2374.0,5.03036138]
[1750441078514,3.2078,2376.0,2374.3,3.2078]
[1750441078711,0.08417862,2375.9,2375.8,3.2078]
[1750441078911,3.2078,2377.2,2375.8,3.2078]
[1750441079110,0.08413613,2377.1,2375.2,55.1639]
[1750441079312,0.08413613,2377.1,2376.3,3.2078]
[1750441079506,0.08413613,2377.1,2376.7,3.2078]
[1750441079812,0.08413613,2377.1,2376.9,0.03036138]
[1750441080109,3.2078,2378.1,2377.0,3.2078]
[1750441080306,14.58857783,2377.1,2375.2,5.7647]
[1750441080509,3.2078,2375.3,2373.5,3.2078]
[1750441080708,11.38077783,2376.6,2371.5,11.38077783]
[1750441080709,3.2078,2373.9,2372.8,3.2078]
[1750441080917,3.2078,2373.9,2371.5,63.97477783]
[1750441080918,11.38077783,2372.9,2371.3,3.2078]
[1750441081216,3.2078,2372.3,2371.7,2.577]
[1750441081510,0.84301,2372.2,2371.8,4.14e-06]
[1750441081714,14.58857783,2372.6,2371.8,4.14e-06]
[1750441081916,3.2078,2373.2,2372.3,3.2078]
[1750441082104,2.11647533,2376.0,2371.8,4.14e-06]
[1750441082105,3.2078,2374.2,2372.9,3.2078]
[1750441082305,3.2078,2375.1,2373.7,3.2078]
[1750441082508,3.2078,2375.6,2375.0,3.2078]
[1750441082727,3.2078,2376.4,2375.3,3.2078]
[1750441083011,2.5606,2377.3,2376.3,3.2078]
[1750441083012,3.2078,2377.1,2376.3,3.2078]
[1750441083216,3.2078,2376.4,2376.0,2.4792]
[1750441083407,11.38077783,2376.1,2375.4,3.2078]
[1750441083613,3.2078,2375.5,2374.0,13.85997783]
[1750441083914,3.2078,2375.2,2374.5,3.2078]
[1750441084109,3.2078,2375.4,2374.5,14.58857783]
[1750441084412,3.2078,2374.7,2374.1,3.2078]
[1750441084616,3.2078,2375.5,2374.6,3.2078]
[1750441084910,3.2078,2375.1,2374.1,14.58857783]
[1750441085112,3.2078,2375.6,2374.8,14.58857783]
[1750441085411,2.3784,2376.5,2372.4,2.5442]
[1750441085412,3.2078,2377.2,2375.5,14.58857783]
[1750441085613,3.2078,2377.2,2374.9,66.40107783]
[1750441085614,3.2078,2377.2,2376.2,14.58857783]
[1750441085812,3.2078,2377.2,2376.5,3.2078]
[1750441086004,2.3784,2377.9,2376.3,2.4403]
[1750441086005,3.2078,2377.9,2376.8,14.58857783]
[1750441086209,3.2078,2377.9,2377.3,3.2078]
[1750441086609,3.2078,2377.9,2377.5,3.2078]
[1750441086812,3.2078,2378.4,2377.6,55.0203]
[1750441087012,3.2078,2378.7,2377.7,11.38077783]
[1750441087213,3.2078,2378.7,2378.0,3.2078]
[1750441087418,3.2078,2378.7,2378.0,14.58857783]
[1750441087615,3.2078,2379.0,2378.3,14.58857783]
[1750441087814,3.2078,2379.6,2378.7,3.2078]
[1750441088313,3.2078,2379.3,2378.8,11.38077783]
[1750441088504,3.2078,2379.8,2379.2,3.2078]
[1750441088916,3.2078,2379.8,2379.4,11.38077783]
[1750441089117,3.2078,2379.8,2379.0,52.547]
[1750441089315,2.3702,2380.6,2378.6,3.2078]
[1750441089316,3.2078,2379.5,2379.2,3.2078]
[1750441089513,3.2078,2380.3,2379.4,11.38077783]
[1750441089710,3.2078,2380.4,2379.5,2.3721]
[1750441090011,2.11647533,2383.5,2379.5,2.3721]
[1750441090012,3.2078,2380.8,2379.8,11.38077783]
[1750441090217,3.2078,2380.5,2379.9,52.547]
[1750441090419,3.2078,2380.0,2379.0,3.2078]
[1750441090620,3.2078,2379.9,2379.2,11.38077783]
[1750441090817,3.2078,2380.6,2379.8,11.38077783]
[1750441091120,3.2078,2380.0,2377.9,14.58857783]
[1750441091319,3.2078,2378.9,2377.7,2.5702]
[1750441091519,3.2078,2378.7,2377.5,3.2078]
[1750441091831,3.2078,2378.7,2375.3,4.9741]
[1750441091832,3.2078,2377.6,2375.4,3.2078]
[1750441092013,3.2078,2377.6,2369.8,393.846]
[1750441092014,3.2078,2375.8,2375.0,11.38077783]
[1750441092322,3.2078,2376.3,2375.6,11.38077783]
[1750441092520,3.2078,2376.8,2376.2,11.38077783]
[1750441092817,3.2078,2377.3,2375.8,3.2078]
[1750441093023,3.2078,2376.9,2376.3,11.38077783]
[1750441093326,3.2078,2376.6,2376.4,0.08416091]
[1750441095015,19.58857783,2376.6,2376.4,0.08416091]
[1750441095218,19.58857783,2376.6,2373.2,11.38077783]
[1750441095219,2.3394,2376.5,2374.7,63.88977783]
[1750441095412,3.2078,2375.4,2374.7,52.509]
[1750441095612,3.2078,2375.3,2374.7,52.509]
[1750441096017,3.2078,2375.0,2374.7,63.88977783]
[1750441096216,3.2078,2374.8,2373.4,3.2078]
[1750441096418,3.2078,2375.7,2374.6,3.2078]
[1750441096619,3.2078,2376.2,2375.2,3.2078]
[1750441096821,3.2078,2376.9,2376.0,3.2078]
[1750441097022,3.2078,2376.2,2376.1,52.509]
[1750441097219,3.2078,2376.8,2376.0,14.58857783]
[1750441097419,52.509,2378.5,2375.4,2.5737]
[1750441097420,3.2078,2377.7,2376.6,3.2078]
[1750441097624,3.2078,2378.0,2377.2,3.2078]
[1750441097822,3.2078,2378.0,2377.3,2.5737]
[1750441098322,3.2078,2377.7,2377.3,2.5737]
[1750441098621,3.2078,2378.3,2377.3,7.5737]
[1750441098828,3.2078,2378.6,2378.1,14.58857783]
[1750441099016,2.4714,2380.0,2378.5,14.58857783]
[1750441099017,3.2078,2379.4,2378.5,14.58857783]
[1750441099334,2.5379,2379.7,2378.6,0.08408307]
[1750441099629,3.2078,2379.1,2378.6,0.08408307]
[1750441099827,3.2078,2379.1,2378.7,3.2078]
[1750441100124,3.2078,2378.8,2378.6,0.08408307]
[1750441100430,3.2078,2379.6,2378.6,0.08408307]
[1750441100723,52.497,2381.0,2378.6,0.08408307]
[1750441100724,3.2078,2380.3,2379.4,11.38077783]
[1750441100916,5.5478,2380.8,2380.0,11.38077783]
[1750441101122,5.5478,2380.8,2379.8,3.2078]
[1750441101123,5.5478,2380.8,2379.7,52.497]
[1750441101328,5.5478,2380.8,2379.9,11.38077783]
[1750441101523,5.5478,2380.8,2379.7,52.497]
[1750441101524,3.2078,2380.8,2380.2,14.58857783]
[1750441101822,3.2078,2381.7,2380.5,14.58857783]
[1750441102029,3.2078,2381.7,2380.8,14.58857783]
[1750441102227,2.34,2381.8,2380.8,14.58857783]
[1750441102228,2.34,2381.8,2381.1,11.38077783]
[1750441102526,3.2078,2381.8,2380.9,13.93487783]
[1750441102824,3.2078,2381.8,2380.9,2.5541]
[1750441103025,3.2078,2381.5,2380.6,52.497]
[1750441103327,3.2078,2381.6,2380.9,3.2078]
[1750441103526,3.2078,2381.6,2380.8,11.38077783]
[1750441103725,3.2078,2381.6,2380.8,14.58857783]
[1750441104124,3.2078,2381.6,2380.7,2.5316]
[1750441104125,3.2078,2381.9,2381.4,14.58857783]
[1750441104323,3.2078,2382.2,2381.5,11.38077783]
[1750441104521,3.2078,2382.6,2381.8,11.38077783]
[1750441104728,3.2078,2382.6,2381.7,3.2078]
[1750441104729,3.2078,2382.6,2381.9,52.468]
[1750441104927,2.5123,2382.5,2381.9,52.468]
[1750441105224,3.2078,2382.2,2381.0,55.6758]
[1750441105525,3.2078,2381.9,2381.0,67.05657783]
[1750441105928,3.2078,2381.9,2381.3,3.2078]
[1750441106126,3.2078,2382.4,2381.6,14.58857783]
[1750441106330,3.2078,2382.4,2381.7,13.87497783]
[1750441106629,2.09711,2384.0,2381.6,3.2078]
[1750441106630,3.2078,2382.1,2381.6,3.2078]
[1750441107129,2.4565,2382.3,2381.1,13.87497783]
[1750441107130,3.2078,2382.0,2381.1,13.87497783]
[1750441107330,3.2078,2382.0,2381.3,3.2078]
[1750441107529,3.2078,2382.0,2381.4,11.38077783]
[1750441107731,3.2078,2382.4,2381.7,11.38077783]
[1750441107926,3.2078,2382.4,2382.0,11.38077783]
[1750441108135,3.2078,2383.0,2382.0,11.38077783]
[1750441108430,3.2078,2383.0,2381.9,55.6538]
[1750441108431,3.2078,2383.0,2382.6,11.38077783]
[1750441108629,11.38077783,2384.2,2381.9,52.446]
[1750441108630,3.2078,2383.3,2382.9,11.38077783]
[1750441108928,3.2078,2383.3,2383.1,11.38077783]
[1750441109136,3.2078,2383.8,2383.1,11.38077783]
[1750441109332,3.2078,2383.8,2383.5,11.38077783]
[1750441109533,3.2078,2385.2,2383.7,11.38077783]
[1750441109727,3.2078,2384.6,2383.8,13.82827783]
[1750441109926,3.2078,2384.6,2383.9,52.424]
[1750441110132,3.2078,2384.6,2384.5,11.38077783]
[1750441110329,3.2078,2385.4,2384.8,11.38077783]
[1750441110631,3.2078,2385.4,2384.5,11.38077783]
[1750441110835,3.2078,2385.1,2384.0,11.38077783]
[1750441111029,3.2078,2385.1,2383.9,52.424]
[1750441111233,3.2078,2385.1,2384.1,11.38077783]
[1750441111427,3.2078,2385.1,2384.8,11.38077783]
[1750441111729,3.2078,2385.8,2384.9,5.6553]
[1750441112035,11.38077783,2385.0,2384.0,0.08389261]
[1750441112230,3.2078,2385.5,2384.9,11.38077783]
[1750441112432,3.2078,2385.5,2384.9,3.2078]
[1750441112628,2.4112,2385.7,2384.9,14.58857783]
[1750441113034,2.4112,2385.7,2384.1,2.491]
[1750441113035,2.4112,2385.7,2384.8,11.38077783]
[1750441113231,3.2078,2385.9,2385.1,11.38077783]
[1750441113432,3.2078,2385.9,2385.1,14.58857783]
[1750441113838,3.2078,2385.9,2384.8,69.47657783]
[1750441114041,3.2078,2385.9,2385.1,14.58857783]
[1750441114240,5.619,2386.2,2385.4,3.2078]
[1750441114447,16.59977783,2386.2,2385.1,3.2078]
[1750441114636,3.2078,2385.9,2385.1,3.2078]
[1750441115037,3.2078,2385.6,2384.8,58.0958]
[1750441115236,11.38077783,2386.1,2384.0,0.08389261]
[1750441115237,3.2078,2384.9,2384.3,3.2078]
[1750441115432,3.2078,2384.7,2383.4,3.2078]
[1750441115732,3.2078,2384.6,2383.5,0.08391021]
[1750441115932,3.2078,2384.6,2383.5,3.29171021]
[1750441116136,3.2078,2384.6,2383.5,0.08391021]
[1750441116538,3.2078,2385.1,2384.2,3.2078]
[1750441116742,3.2078,2385.1,2384.3,3.2078]
[1750441117338,3.2078,2384.4,2383.6,3.2078]
[1750441117537,3.2078,2384.4,2383.5,0.08391021]
[1750441117538,3.2078,2384.3,2383.5,0.08391021]
[1750441117735,2.3851,2384.2,2383.5,0.08391021]
[1750441118439,2.3851,2384.2,2383.3,3.2078]
[1750441118642,3.2078,2384.8,2384.0,3.2078]
[1750441118840,2.6033,2384.7,2384.0,3.2078]
[1750441119042,3.2078,2385.4,2384.6,3.2078]
[1750441119246,3.2078,2385.4,2384.6,55.5698]
[1750441119441,3.2078,2385.4,2384.6,58.1721]
[1750441119636,2.6033,2385.6,2384.6,58.1721]
[1750441119839,3.2078,2385.4,2384.6,52.362]
[1750441120039,2.6033,2385.3,2384.6,52.362]
[1750441120441,3.2078,2384.7,2384.0,3.2078]
[1750441120640,2.6033,2385.3,2384.5,11.38077783]
[1750441120847,3.2078,2385.1,2384.1,2.6023]
[1750441121040,3.2078,2384.7,2383.7,55.5698]
[1750441121241,2.5709,2384.6,2383.7,55.5698]
[1750441121540,3.2078,2384.1,2383.3,3.2078]
[1750441121741,3.2078,2384.1,2383.6,3.2078]
[1750441121946,52.354,2385.3,2383.0,2.5216]
[1750441121947,3.2078,2384.3,2383.3,3.2078]
[1750441122153,2.5709,2384.2,2383.3,3.2078]
[1750441122349,3.2078,2383.9,2383.3,3.2078]
[1750441122751,2.5709,2383.8,2382.8,3.2078]
[1750441122952,3.2078,2383.4,2382.6,11.38077783]
[1750441123147,3.2078,2383.4,2382.5,66.94257783]
[1750441123148,2.5709,2383.3,2382.5,66.94257783]
[1750441123345,3.2078,2383.4,2382.8,14.58857783]
[1750441123543,3.2078,2383.4,2382.6,2.5216]
[1750441123544,3.2078,2384.2,2383.1,3.2078]
[1750441123750,3.2078,2383.9,2383.2,3.2078]
[1750441123950,2.5709,2383.8,2383.2,3.2078]
[1750441124154,2.5709,2383.8,2383.4,11.38077783]
[1750441124350,3.2078,2384.2,2383.4,11.38077783]
[1750441124752,2.5992,2384.1,2383.4,14.58857783]
[1750441125058,2.5992,2384.1,2383.1,14.58857783]
[1750441125353,3.2078,2383.9,2383.5,3.2078]
[1750441125557,3.2078,2384.6,2383.6,11.38077783]
[1750441125760,3.2078,2384.6,2383.9,14.58857783]
[1750441125950,2.5992,2385.1,2384.4,11.38077783]
[1750441126252,2.5992,2385.1,2384.1,14.58857783]
[1750441126455,2.5992,2385.1,2384.2,2.6223]
[1750441126755,2.5992,2385.1,2381.7,11.38077783]
[1750441126756,3.2078,2384.3,2383.5,3.2078]
[1750441127254,2.5128,2384.2,2383.5,3.2078]
[1750441127853,3.2078,2383.8,2383.2,3.2078]
[1750441128152,3.2078,2383.8,2382.7,3.2078]
[1750441128350,3.2078,2383.5,2382.7,3.2078]
[1750441128551,2.5128,2383.4,2382.7,3.2078]
[1750441128950,3.2078,2383.2,2381.8,3.2078]
[1750441129150,2.5128,2383.1,2382.6,11.38077783]
[1750441129359,3.2078,2383.4,2382.6,3.2078]
[1750441129563,3.2078,2383.4,2382.8,11.38077783]
[1750441129761,2.5128,2383.6,2383.0,3.2078]
[1750441129955,3.2078,2383.7,2383.2,11.38077783]
[1750441130154,3.2078,2383.8,2383.3,3.2078]
[1750441130455,3.2078,2383.4,2382.7,2.4683]
[1750441130653,3.2078,2383.7,2382.8,11.38077783]
[1750441130850,0.83899,2383.6,2382.7,5.6761]
[1750441131057,0.83899,2383.6,2382.4,3.2078]
[1750441131058,3.2078,2383.4,2382.4,3.2078]
[1750441131364,2.6325,2383.3,2382.4,3.2078]
[1750441131661,2.6325,2383.3,2382.5,11.38077783]
[1750441131853,2.6325,2383.3,2382.7,3.2078]
[1750441132450,2.6325,2383.3,2382.6,2.3945]
[1750441133661,3.2078,2384.2,2383.0,3.2078]
[1750441133855,3.2078,2384.2,2383.4,11.38077783]
[1750441134061,3.2078,2384.2,2383.3,3.2078]
[1750441134459,3.2078,2383.9,2383.3,3.2078]
[1750441134662,2.4048,2383.8,2383.3,3.2078]
[1750441134858,2.4048,2383.8,2383.1,2.5476]
[1750441135057,3.2078,2383.6,2382.8,52.361]
[1750441135261,2.4048,2383.8,2382.8,52.361]
[1750441135455,2.4048,2383.8,2382.9,2.5476]
[1750441135657,3.2078,2383.2,2382.8,52.361]
[1750441135960,3.2078,2383.2,2382.1,52.361]
[1750441136266,3.2078,2382.9,2382.2,3.2078]
[1750441136459,2.4453,2382.8,2382.2,3.2078]
[1750441136654,3.2078,2382.9,2382.1,52.361]
[1750441136861,5.6531,2383.5,2382.8,11.38077783]
[1750441137157,0.8391,2383.3,2382.7,3.2078]
[1750441137467,3.2078,2382.9,2382.1,55.5688]
[1750441137664,3.2078,2382.6,2382.1,3.2078]
[1750441137861,3.2078,2382.2,2381.6,11.38077783]
[1750441138163,3.2078,2382.2,2379.8,4.222]
[1750441138164,3.2078,2381.7,2380.7,3.2078]
[1750441138464,3.2078,2381.0,2380.3,3.2078]
[1750441138863,3.2078,2380.7,2380.0,3.2078]
[1750441139065,3.2078,2380.7,2380.1,2.5361]
[1750441139465,3.2078,2380.7,2379.0,57.901]
[1750441139466,3.2078,2380.2,2378.2,3.2078]
[1750441139661,5.0,2380.7,2379.4,3.2078]
[1750441139662,3.2078,2379.9,2379.4,3.2078]
[1750441139961,7.5778,2380.6,2378.3,52.38]
[1750441139962,3.2078,2379.6,2378.3,52.38]
[1750441140261,3.2078,2378.8,2378.2,4.9053]
[1750441140463,3.2078,2379.3,2378.7,11.38077783]
[1750441140765,3.2078,2379.0,2377.5,55.5878]
[1750441140964,3.2078,2377.8,2376.8,3.2078]
[1750441141166,3.2078,2377.4,2376.7,2.5743]
[1750441141367,3.2078,2377.5,2376.3,3.2078]
[1750441141567,3.2078,2377.1,2376.6,3.2078]
[1750441141769,3.2078,2376.8,2376.7,2.5743]
[1750441142062,3.2078,2377.1,2376.1,3.2078]
[1750441142256,3.2078,2376.8,2375.6,3.2078]
[1750441142464,3.2078,2377.7,2376.7,11.38077783]
[1750441142660,3.2078,2377.7,2375.6,2.5954]
[1750441142661,3.2078,2378.5,2377.5,14.58857783]
[1750441142859,3.2078,2378.5,2376.8,2.67954675]
[1750441142860,3.2078,2380.4,2378.5,3.2078]
[1750441143063,3.2078,2381.1,2380.3,14.58857783]
[1750441143265,13.20710932,2381.7,2380.9,11.38077783]
[1750441143266,16.41490932,2381.7,2380.9,11.38077783]
[1750441143466,3.2078,2381.7,2381.3,3.2078]
[1750441143659,3.2078,2381.7,2380.1,5.0623]
[1750441143865,3.20779527,2380.7,2380.1,7.6577]
[1750441144069,3.20779527,2380.7,2380.1,11.38077783]
[1750441144362,2.5448,2381.6,2380.2,2.5954]
[1750441144363,3.2078,2381.2,2380.2,2.5954]
[1750441144665,3.2078,2381.8,2380.9,11.38077783]
[1750441144972,3.2078,2381.8,2380.0,11.38077783]
[1750441144973,0.08397363,2381.7,2381.2,11.38077783]
[1750441145171,3.20779527,2381.4,2381.0,2.5954]
[1750441145464,0.08398773,2381.3,2381.0,2.5954]
[1750441145667,0.08399126,2381.2,2381.0,2.5954]
[1750441145968,3.2078,2381.8,2381.1,11.38077783]
[1750441146171,3.20779527,2381.3,2380.1,2.5703]
[1750441146468,0.0839701,2381.8,2381.1,11.38077783]
[1750441146663,0.0839701,2381.8,2381.3,3.2078]
[1750441146972,0.0839701,2381.8,2380.1,2.5703]
[1750441146973,3.20779527,2381.2,2380.3,55.6258]
[1750441147269,3.20779527,2381.1,2380.8,3.2078]
[1750441147469,3.20779527,2381.1,2380.9,2.4011]
[1750441147667,3.2078,2381.6,2380.9,11.38077783]
[1750441147867,3.20779527,2381.3,2380.8,11.38077783]
[1750441148068,3.2078,2381.6,2380.8,13.78187783]
[1750441148069,3.20779527,2381.2,2380.8,13.78187783]
[1750441148269,3.20779527,2381.6,2381.1,11.38077783]
[1750441148471,3.20779527,2381.4,2381.2,13.79247783]
[1750441148667,3.20779527,2381.4,2346.1,9.732]
[1750441148668,3.20779527,2380.4,2379.8,11.38077783]
[1750441148872,3.20779527,2379.9,2379.1,3.2078]
[1750441149164,3.20779527,2378.9,2378.8,3.2078]
[1750441149366,3.2078,2379.7,2378.8,3.2078]
[1750441149567,3.20779527,2378.9,2378.8,3.2078]
[1750441149767,6.41559527,2378.9,2378.1,3.2078]
[1750441149968,6.41559527,2378.7,2378.2,11.38077783]
[1750441150162,3.20779527,2378.8,2378.4,3.2078]